fUSD/lending_fUSD_20250417
["ID","MTS","AMOUNT","RATE_DAILY","PERIOD"]
[358313806,1744924554118,-350.0,0.00069698,111]
[358313807,1744924554139,-350.0,0.00069878,111]
[358313808,1744924554159,-1691.2143,0.00069899,2]
[358313809,1744924554180,-4290.4719,0.00069899,2]
[358313810,1744924554204,-500.0,0.00069988,120]
[358313811,1744924554227,-500.0,0.00069988,120]
[358313812,1744924554248,-500.0,0.00069988,120]
[358313813,1744924554271,-500.0,0.00069988,120]
[358313814,1744924554292,-496.0209,0.00069988,120]
[358313815,1744924730491,-153.0,0.00045012,60]
[358313816,1744924730520,-153.0,0.00045012,60]
[358313817,1744924730546,-153.0,0.00045012,60]
[358313818,1744924730572,-153.0,0.00045012,60]
[358313819,1744924730598,-153.0,0.00045012,60]
[358313820,1744924730625,-153.0,0.00045012,60]
[358313821,1744924730650,-153.0,0.00045012,60]
[358313822,1744924730677,-153.0,0.00045012,60]
[358313823,1744924730703,-153.0,0.00045012,60]
[358313824,1744924730729,-153.0,0.00045012,60]
[358313825,1744924730754,-153.0,0.00045012,60]
[358313826,1744924730779,-153.0,0.00045012,60]
[358313827,1744924730815,-153.0,0.00045012,60]
[358313828,1744924730874,-153.0,0.00045012,60]
[358313829,1744924730926,-153.0,0.00045012,60]
[358313830,1744924730977,-153.0,0.00045012,60]
[358313831,1744924731027,-153.0,0.00045012,60]
[358313832,1744924731077,-153.0,0.00045012,60]
[358313833,1744924731136,-153.0,0.00045012,60]
[358313834,1744924731186,-153.0,0.00045012,60]
[358313835,1744924731236,-153.0,0.00045012,60]
[358313836,1744924731284,-153.0,0.00045012,60]
[358313837,1744924731331,-153.0,0.00045012,60]
[358313838,1744924731393,-153.0,0.00045012,60]
[358313839,1744924731425,-153.0,0.00045012,60]
[358313840,1744924731450,-153.0,0.00045012,60]
[358313841,1744924731475,-153.0,0.00045012,60]
[358313842,1744924731500,-153.0,0.00045012,60]
[358313843,1744924731528,-153.0,0.00045012,60]
[358313844,1744924731553,-153.0,0.00045012,60]
[358313845,1744924731578,-153.0,0.00045012,60]
[358313846,1744924731604,-153.0,0.00045012,60]
[358313847,1744924731629,-153.0,0.00045012,60]
[358313848,1744924731655,-153.0,0.00045012,60]
[358313849,1744924731846,-153.0,0.00045012,60]
[358313850,1744924731872,-153.0,0.00045012,60]
[358313851,1744924731899,-153.0,0.00045012,60]
[358313852,1744924731926,-153.0,0.00045012,60]
[358313853,1744924731952,-153.0,0.00045012,60]
[358313854,1744924731980,-153.0,0.00045012,60]
[358313855,1744924732007,-153.0,0.00045012,60]
[358313856,1744924732034,-153.0,0.00045012,60]
[358313857,1744924732060,-153.0,0.00045012,60]
[358313858,1744924732087,-153.0,0.00045012,60]
[358313859,1744924732112,-153.0,0.00045012,60]
[358313860,1744924732139,-153.0,0.00045012,60]
[358313861,1744924732166,-153.0,0.00045012,60]
[358313862,1744924732193,-153.0,0.00045012,60]
[358313863,1744924732220,-153.0,0.00045012,60]
[358313864,1744924732250,-153.0,0.00045012,60]
[358313865,1744924732278,-153.0,0.00045012,60]
[358313866,1744924732307,-153.0,0.00045012,60]
[358313867,1744924732335,-153.0,0.00045012,60]
[358313868,1744924732361,-153.0,0.00045012,60]
[358313869,1744924732387,-153.0,0.00045012,60]
[358313870,1744924732413,-153.0,0.00045012,60]
[358313871,1744924732439,-153.0,0.00045012,60]
[358313872,1744924732465,-153.0,0.00045012,60]
[358313873,1744924732492,-153.0,0.00045012,60]
[358313874,1744924732518,-153.0,0.00045012,60]
[358313875,1744924732544,-153.0,0.00045012,60]
[358313876,1744924732571,-153.0,0.00045012,60]
[358313877,1744924732597,-153.0,0.00045012,60]
[358313878,1744924759765,-153.0,0.00045012,60]
[358313879,1744924759796,-153.0,0.00045012,60]
[358313880,1744924759827,-153.0,0.00045012,60]
[358313881,1744924759859,-153.0,0.00045012,60]
[358313882,1744924759891,-153.0,0.00045012,60]
[358313883,1744924759920,-153.0,0.00045012,60]
[358313885,1744925069249,250.0,0.00017,2]
[358313886,1744925070314,300.0,0.00019,2]
[358313887,1744925071961,-328.2663679,0.00021,2]
[358313888,1744925113451,-407.98264617,0.0002,2]
[358313889,1744925227135,-415.43757682,0.000198,2]
[358313890,1744925237106,-651.04798618,0.000198,2]
[358313891,1744925237126,-47.42380348,0.000198,2]
[358313892,1744925241122,-391.44627843,0.000198,2]
[358313893,1744925249133,-1114.63783954,0.000198,2]
[358313894,1744925249155,-300.0,0.00019899,2]
[358313895,1744925249175,-3999.12501843,0.000199,2]
[358313896,1744925251091,-2443.74216342,0.000199,2]
[358313909,1744925333847,-300.0,0.00019899,2]
[358313911,1744925333877,-1764.28108042,0.000199,2]
[358313914,1744925358791,-239.21501723,0.000199,2]
[358313916,1744925362086,-267.78002785,0.000199,2]
[358313928,1744925431615,-608.77771316,0.0001988,2]
[358313929,1744925431624,-2680.54134344,0.000199,2]
[358313930,1744925431636,-1220.46398211,0.000199,2]
[358313931,1744925431647,-9183.3498387,0.000199,2]
[358313932,1744925431656,-6574.06495876,0.000199,2]
[358313933,1744925431666,-1553.50792145,0.000199,2]
[358313934,1744925431676,-514.0,0.0001997,2]
[358313935,1744925431685,-13369.86981279,0.00019989,2]
[358313936,1744925431697,-952.66152001,0.00019989,2]
[358313937,1744925431708,-403.64353309,0.00019989,2]
[358313938,1744925431717,-3.35646691,0.0001999,2]
[358313939,1744925431729,-152.03353309,0.0001999,2]
[358313940,1744925431738,-143.58656069,0.0001999,2]
[358313941,1744925431749,-283.92343931,0.0001999,2]
[358313942,1744925431759,-427.51,0.0001999,2]
[358313943,1744925431769,-427.51,0.0001999,2]
[358313944,1744925431778,-427.51,0.0001999,2]
[358313945,1744925431787,-427.51,0.0001999,2]
[358313946,1744925431797,-427.51,0.0001999,2]
[358313947,1744925431808,-427.51,0.0001999,2]
[358313948,1744925431817,-226.01656069,0.0001999,2]
[358313949,1744925431828,-201.49343931,0.0001999,2]
[358313950,1744925431838,-88.4019817,0.0001999,2]
[358313951,1744925431849,-339.1080183,0.0001999,2]
[358313952,1744925431858,-427.51,0.0001999,2]
[358313954,1744925431867,-1344.8899717,0.00019999,2]
[358313956,1744925431879,-31498.84634868,0.00019999,2]
[358313957,1744925431888,-195.24743789,0.00019999,2]
[358313958,1744925431897,-233.03868479,0.00019999,2]
[358313959,1744925431907,-18712.69218315,0.0002,2]
[358313961,1744925431922,-1594.0,0.0002,2]
[358314128,1744925437622,-5559.25206961,0.0002,2]
[358314129,1744925437634,-8695.33159424,0.0002,2]
[358314130,1744925437684,-468.40396298,0.0002,2]
[358314131,1744925437696,-797.00000001,0.0002,2]
[358314132,1744925437707,-435.64229496,0.0002,2]
[358314133,1744925437718,-15688.30917,0.0002,2]
[358314134,1744925437729,-10050.43970292,0.0002,2]
[358314135,1744925437750,-546.55399976,0.0002,2]
[358314136,1744925437810,-1942.4,0.0002,2]
[358314137,1744925437823,-822.49017547,0.0002,2]
[358314138,1744925437871,-490.71596228,0.0002,2]
[358314139,1744925437882,-8916.57994639,0.0002,2]
[358314140,1744925437929,-6699.36597862,0.0002,2]
[358314165,1744925439759,-417343.96509512,0.0002,2]
[358314167,1744925439769,-71657.99062916,0.0002,2]
[358314169,1744925439779,-152127.83567613,0.0002,2]
[358314171,1744925439788,-21.7336321,0.00021,2]
[358314173,1744925439797,-400.0,0.00023,2]
[358314175,1744925439807,-966.15628595,0.00023,15]
[358314177,1744925439816,-300.0,0.00024799,10]
[358314179,1744925439826,-500.0,0.00024799,2]
[358314181,1744925439835,-203694.043383,0.000248,2]
[358314183,1744925439845,-42444.2607186,0.000249,2]
[358314185,1744925439855,-450.0,0.00025,2]
[358314187,1744925439864,-6574.06495874,0.00026541,2]
[358314189,1744925439874,-500.0,0.00028025,5]
[358314191,1744925439884,-3537.02172655,0.0002989,2]
[358314193,1744925439893,-461.621863,0.0003,10]
[358314195,1744925439903,-363.63512475,0.00032655,5]
[358314197,1744925439912,-400.75000206,0.00032655,5]
[358314199,1744925439923,-6574.06495874,0.00033182,2]
[358314201,1744925439933,-2500.0,0.000333,2]
[358314204,1744925439943,-1000.0,0.00033504,5]
[358314206,1744925439953,-449.32,0.00033659,2]
[358314208,1744925439963,-23900.0,0.0003525,2]
[358314210,1744925439973,-3537.02172655,0.00039716,3]
[358314212,1744925439983,-581.61251659,0.00039726,15]
[358314214,1744925439992,-581.61251659,0.00039726,15]
[358314216,1744925440002,-581.61251659,0.00039726,15]
[358314218,1744925440011,-581.61251659,0.00039726,15]
[358314220,1744925440021,-581.61251659,0.00039726,15]
[358314222,1744925440030,-581.61251659,0.00039726,15]
[358314224,1744925440039,-581.61251659,0.00039726,15]
[358314226,1744925440049,-581.61251659,0.00039726,15]
[358314228,1744925440059,-581.61251659,0.00039726,15]
[358314230,1744925440068,-581.61251659,0.00039726,15]
[358314231,1744925440077,-581.61251659,0.00039726,15]
[358314232,1744925440086,-581.61251659,0.00039726,15]
[358314233,1744925440097,-581.61251659,0.00039726,15]
[358314234,1744925440106,-581.61251659,0.00039726,15]
[358314235,1744925440115,-581.61251659,0.00039726,15]
[358314237,1744925440124,-590.56040146,0.00039726,15]
[358314239,1744925440133,-590.56040146,0.00039726,15]
[358314241,1744925440142,-590.56040146,0.00039726,15]
[358314243,1744925440151,-590.56040146,0.00039726,15]
[358314245,1744925440161,-590.56040146,0.00039726,15]
[358314247,1744925440170,-590.56040146,0.00039726,15]
[358314249,1744925440180,-590.56040146,0.00039726,15]
[358314251,1744925440189,-701.05234754,0.00039726,15]
[358314253,1744925440198,-701.05234754,0.00039726,15]
[358314255,1744925440207,-701.05234754,0.00039726,15]
[358314257,1744925440217,-6574.06495874,0.00039823,15]
[358314259,1744925440227,-5000.01,0.00040425,2]
[358314261,1744925440236,-200.0,0.00041498,2]
[358314263,1744925440245,-687.4248974,0.00043523,10]
[358314265,1744925440255,-183.58803248,0.0004499,7]
[358314267,1744925440264,-300.0,0.00044999,30]
[358314270,1744925440273,-151.0,0.00045,120]
[358314272,1744925440283,-151.0,0.00045,120]
[358314274,1744925440292,-429535.86498524,0.00045,30]
[358314276,1744925440301,-2920.0,0.00045,120]
[358314278,1744925440310,-243.45492183,0.00045394,22]
[358314280,1744925440319,-6574.06495874,0.00046464,15]
[358314282,1744925440329,-1000.0,0.0005,120]
[358314284,1744925440338,-157.0,0.000505,120]
[358314286,1744925440348,-2000.0,0.00052,120]
[358314288,1744925440358,-2000.0,0.0005239,4]
[358314290,1744925440368,-932.2673738,0.00052762,24]
[358314292,1744925440377,-157.0,0.00053,120]
[358314294,1744925440386,-6574.06495874,0.00053106,15]
[358314296,1744925440395,-771.21235368,0.00053762,120]
[358314298,1744925440403,-13032.54463844,0.00053762,30]
[358314300,1744925440412,-24759.1520859,0.0005399,4]
[358314302,1744925440421,-87006.15677241,0.00054,5]
[358314304,1744925440430,-153.51,0.000551,54]
[358314306,1744925440439,-157.0,0.000555,120]
[358314308,1744925440448,-254.55687195,0.00056036,120]
[358314310,1744925440458,-157.0,0.00058,120]
[358314312,1744925440469,-2810.385799,0.00058,120]
[358314314,1744925440478,-6574.06495874,0.00059747,15]
[358314316,1744925440487,-1000.0,0.0006,120]
[358314318,1744925440497,-598.86914564,0.0006,120]
[358314319,1744925440507,-150.999999,0.0006,120]
[358314321,1744925440516,-157.0,0.000605,120]
[358314323,1744925440525,-3537.02172655,0.00060917,5]
[358314325,1744925440536,-10274.29,0.00060926,2]
[358314327,1744925440545,-157.0,0.00063,120]
[358314329,1744925440555,-1000.0,0.00065,120]
[358314331,1744925440565,-302.82992697,0.00065,30]
[358314333,1744925440574,-1000.0,0.00065,120]
[358314335,1744925440583,-500.0,0.00065112,2]
[358314337,1744925440593,-200.0,0.00065273,30]
[358314339,1744925440602,-157.0,0.000655,120]
[358314340,1744925440611,-6574.06495874,0.00066388,15]
[358314342,1744925440620,-172.09,0.00067114,2]
[358314344,1744925440630,-3537.02172655,0.00067257,5]
[358314346,1744925440639,-574.53,0.00067267,2]
[358314348,1744925440648,-157.0,0.00068,120]
[358314350,1744925440657,-500.0,0.00068493,120]
[358314352,1744925440667,-500.0,0.00068493,120]
[358314354,1744925440675,-500.0,0.00068493,120]
[358314356,1744925440684,-500.0,0.00068493,120]
[358314358,1744925440693,-500.0,0.00068493,120]
[358314360,1744925440702,-500.0,0.00068493,120]
[358314361,1744925440712,-500.0,0.00068493,120]
[358314363,1744925440721,-500.0,0.00068493,120]
[358314365,1744925440730,-500.0,0.00068493,120]
[358314367,1744925440739,-500.0,0.00068493,120]
[358314369,1744925440748,-320.0750167,0.00068493,120]
[358314371,1744925440759,-500.0,0.00068493,120]
[358314373,1744925440768,-677.58,0.00068493,120]
[358314375,1744925440777,-677.58,0.00068493,120]
[358314377,1744925440786,-500.0,0.00068493,120]
[358314379,1744925440795,-500.0,0.00068493,120]
[358314381,1744925440804,-500.0,0.00068493,120]
[358314383,1744925440813,-500.0,0.00068493,120]
[358314384,1744925440823,-500.0,0.00068493,120]
[358314385,1744925440833,-500.0,0.00068493,120]
[358314386,1744925440842,-500.0,0.00068493,120]
[358314387,1744925440852,-500.0,0.00068493,120]
[358314388,1744925440862,-500.0,0.00068493,120]
[358314389,1744925440872,-500.0,0.00068493,120]
[358314390,1744925440883,-500.0,0.00068493,120]
[358314391,1744925440892,-500.0,0.00068493,120]
[358314392,1744925440902,-500.0,0.00068493,120]
[358314393,1744925440911,-500.0,0.00068493,120]
[358314394,1744925440921,-500.0,0.00068493,120]
[358314395,1744925440930,-500.0,0.00068493,120]
[358314396,1744925440939,-500.0,0.00068493,120]
[358314397,1744925440948,-500.0,0.00068493,120]
[358314398,1744925440958,-500.0,0.00068493,120]
[358314399,1744925440967,-500.0,0.00068493,120]
[358314400,1744925440977,-500.0,0.00068493,120]
[358314401,1744925440986,-575.83,0.00068493,120]
[358314402,1744925440996,-500.0,0.00068493,120]
[358314403,1744925441013,-500.0,0.00068493,120]
[358314404,1744925441024,-500.0,0.00068493,2]
[358314405,1744925441034,-500.0,0.00068493,2]
[358314406,1744925441043,-500.0,0.00068493,120]
[358314407,1744925441053,-500.0,0.00068493,120]
[358314408,1744925441063,-500.0,0.00068493,120]
[358314409,1744925441072,-500.0,0.00068493,120]
[358314410,1744925441082,-571.49634003,0.00068493,120]
[358314411,1744925441091,-500.0,0.00068493,120]
[358314412,1744925441101,-180.87,0.00068585,120]
[358314413,1744925441111,-1787.44,0.00068759,30]
[358314414,1744925441120,-1000.0,0.00068789,120]
[358314415,1744925441130,-3537.02172655,0.00068825,5]
[358314416,1744925441139,-4000.0,0.00068835,60]
[358314417,1744925441149,-300.0,0.000689,25]
[358314418,1744925441159,-170.01,0.00068908,2]
[358314419,1744925441168,-9827.93,0.00068967,2]
[358314420,1744925441178,-250.0,0.00068967,120]
[358314421,1744925441188,-390.99,0.00069057,2]
[358314422,1744925441197,-7074.0434531,0.0006911,5]
[358314423,1744925441207,-16693.84,0.0006912,2]
[358314424,1744925441216,-574.53,0.00069531,2]
[358314425,1744925441225,-3639.24,0.00069625,2]
[358314426,1744925441235,-300.0,0.00069662,89]
[358314427,1744925441245,-243.45492183,0.00069888,54]
[358314428,1744925441254,-2500.0,0.00069899,2]
[358314429,1744925441264,-573.44,0.00069919,2]
[358314430,1744925441274,-1500.0,0.00069919,120]
[358314431,1744925441283,-6481.97075825,0.0006995,120]
[358314432,1744925441292,-7074.0434531,0.00069969,5]
[358314433,1744925441302,-7074.0434531,0.00069987,5]
[358314434,1744925441311,-3537.02172655,0.00069989,5]
[358314435,1744925441320,-14148.0869062,0.0006999,5]
[358314436,1744925441330,-162.721,0.00069996,120]
[358314437,1744925441339,-605.921,0.00069996,120]
[358314438,1744925441348,-271.70202132,0.00069997,120]
[358314439,1744925441358,-648.36750662,0.00069997,120]
[358314440,1744925441366,-500.0,0.00069997,120]
[358314441,1744925441376,-500.0,0.00069997,120]
[358314442,1744925441385,-500.0,0.00069997,120]
[358314443,1744925441394,-500.0,0.00069997,120]
[358314444,1744925441404,-500.0,0.00069997,120]
[358314445,1744925441413,-500.0,0.00069997,120]
[358314446,1744925441423,-500.0,0.00069997,120]
[358314447,1744925441432,-500.0,0.00069997,120]
[358314448,1744925441442,-504.78,0.00069997,120]
[358314449,1744925441453,-500.0,0.00069997,120]
[358314450,1744925441464,-500.0,0.00069997,120]
[358314451,1744925441474,-500.0,0.00069997,120]
[358314452,1744925441484,-500.0,0.00069997,120]
[358314453,1744925441495,-500.0,0.00069997,120]
[358314454,1744925441504,-500.0,0.00069997,120]
[358314455,1744925441514,-500.0,0.00069997,120]
[358314456,1744925441523,-500.0,0.00069997,120]
[358314457,1744925441534,-500.0,0.00069997,120]
[358314458,1744925441543,-500.0,0.00069997,120]
[358314459,1744925441552,-500.0,0.00069997,120]
[358314460,1744925441561,-1963.46,0.00069997,120]
[358314461,1744925441570,-1963.46,0.00069997,120]
[358314462,1744925441580,-1963.46,0.00069997,120]
[358314463,1744925441589,-1963.46,0.00069997,120]
[358314464,1744925441598,-500.0,0.00069998,3]
[358314465,1744925441607,-298.30019441,0.00069998,120]
[358314466,1744925441617,-500.0,0.00069998,2]
[358314467,1744925441626,-500.0,0.00069998,2]
[358314468,1744925441635,-500.0,0.00069998,120]
[358314469,1744925441645,-500.0,0.00069998,120]
[358314470,1744925441654,-1963.46,0.00069998,120]
[358314471,1744925441663,-1963.46,0.00069998,120]
[358314472,1744925441673,-500.0,0.00069998,120]
[358314473,1744925441683,-1963.46,0.00069999,120]
[358314474,1744925441692,-1963.46,0.00069999,120]
[358314475,1744925441701,-1963.46,0.00069999,120]
[358314476,1744925441711,-1963.46,0.00069999,120]
[358314477,1744925441720,-1963.46,0.00069999,120]
[358314478,1744925441729,-1963.46,0.00069999,120]
[358314479,1744925441739,-677.58,0.00069999,120]
[358314480,1744925441749,-50000.0,0.0007,70]
[358314481,1744925441758,-1426.54,0.0007,120]
[358314482,1744925441767,-205.425593,0.0007,120]
[358314483,1744925441776,-151.0,0.0007,120]
[358314484,1744925441785,-161.97144356,0.00070483,14]
[358314485,1744925441795,-155.22,0.00070485,120]
[358314486,1744925441804,-209.97,0.00070781,2]
[358314487,1744925441813,-3537.02172655,0.00070969,6]
[358314488,1744925441822,-14148.0869062,0.0007099,6]
[358314489,1744925441832,-50000.0,0.00071,71]
[358314490,1744925441841,-151.0,0.00071,120]
[358314491,1744925441850,-151.0,0.00071,120]
[358314492,1744925441860,-151.482273,0.00071,120]
[358314493,1744925441869,-151.0,0.00071,120]
[358314494,1744925441879,-500.0,0.00071156,14]
[358314495,1744925441888,-300.0,0.00071293,120]
[358314496,1744925441898,-3537.02172655,0.00071458,6]
[358314497,1744925441908,-22989.6184,0.00071468,2]
[358314498,1744925441917,-500.0,0.00071586,15]
[358314499,1744925442055,-574.53,0.00071795,2]
[358314500,1744925442065,-3537.02172655,0.00071889,6]
[358314501,1744925442075,-600.0,0.000719,26]
[358314502,1744925442084,-17685.1086328,0.00071979,6]
[358314503,1744925442094,-204.7120397,0.00071982,120]
[358314504,1744925442103,-3537.02172655,0.00071982,6]
[358314505,1744925442113,-500.0,0.00071989,2]
[358314506,1744925442123,-500.0,0.00071989,120]
[358314507,1744925442133,-579.00998444,0.00071989,120]
[358314508,1744925442142,-500.0,0.00071989,120]
[358314509,1744925442152,-500.0,0.00071989,120]
[358314510,1744925442161,-500.0,0.00071989,120]
[358314511,1744925442170,-500.0,0.00071989,120]
[358314512,1744925442180,-500.0,0.00071989,120]
[358314513,1744925442189,-500.0,0.00071989,120]
[358314514,1744925442199,-500.0,0.00071989,120]
[358314515,1744925442209,-500.0,0.00071989,120]
[358314516,1744925442219,-500.0,0.00071989,120]
[358314517,1744925442228,-500.0,0.00071989,120]
[358314518,1744925442238,-500.0,0.00071989,30]
[358314519,1744925442247,-500.0,0.00071989,120]
[358314520,1744925442257,-500.0,0.00071989,120]
[358314521,1744925442267,-500.0,0.00071989,120]
[358314522,1744925442277,-500.0,0.00071989,120]
[358314523,1744925442286,-500.0,0.00071989,120]
[358314524,1744925442296,-500.0,0.00071989,120]
[358314525,1744925442306,-500.0,0.00071989,120]
[358314526,1744925442316,-500.0,0.00071989,120]
[358314527,1744925442326,-500.0,0.00071989,120]
[358314528,1744925442336,-500.0,0.00071989,120]
[358314529,1744925442346,-500.0,0.00071989,120]
[358314530,1744925442356,-500.74,0.00071989,120]
[358314531,1744925442366,-500.0,0.00071989,120]
[358314532,1744925442376,-500.0,0.00071989,120]
[358314533,1744925442386,-500.0,0.00071989,120]
[358314534,1744925442395,-500.0,0.00071989,120]
[358314535,1744925442404,-500.0,0.00071989,120]
[358314536,1744925442414,-500.0,0.00071989,120]
[358314537,1744925442424,-500.0,0.00071989,120]
[358314538,1744925442433,-500.0,0.00071989,120]
[358314539,1744925442443,-500.0,0.00071989,120]
[358314540,1744925442455,-500.0,0.00071989,120]
[358314541,1744925442464,-500.0,0.00071989,120]
[358314542,1744925442473,-609.25155675,0.00071989,120]
[358314543,1744925442483,-500.0,0.00071989,120]
[358314544,1744925442493,-500.0,0.00071989,120]
[358314545,1744925442504,-500.0,0.00071989,120]
[358314546,1744925442513,-500.0,0.00071989,120]
[358314547,1744925442523,-500.0,0.00071989,120]
[358314548,1744925442533,-500.0,0.00071989,120]
[358314549,1744925442543,-500.0,0.00071989,120]
[358314550,1744925442553,-500.0,0.00071989,120]
[358314551,1744925442563,-500.0,0.00071989,120]
[358314552,1744925442573,-500.0,0.00071989,120]
[358314553,1744925442583,-21479.4,0.00071989,7]
[358314555,1744925442592,-21479.4,0.00071989,7]
[358314557,1744925442602,-500.0,0.00071989,120]
[358314560,1744925442611,-500.0,0.00071989,120]
[358314563,1744925442620,-537.28440187,0.00071989,120]
[358314566,1744925442630,-500.0,0.00071989,120]
[358314568,1744925442640,-258.02332734,0.00071989,120]
[358314570,1744925442650,-500.0,0.00071989,120]
[358314571,1744925442659,-636.56,0.00071989,120]
[358314572,1744925442670,-500.0,0.00071989,120]
[358314573,1744925442679,-500.0,0.00071989,120]
[358314574,1744925442689,-500.0,0.00071989,120]
[358314575,1744925442698,-640.33,0.00071989,120]
[358314576,1744925442707,-500.0,0.00071989,120]
[358314577,1744925442717,-500.0,0.00071989,120]
[358314578,1744925442726,-500.0,0.00071989,120]
[358314579,1744925442736,-500.0,0.00071989,120]
[358314580,1744925442747,-500.0,0.00071989,120]
[358314581,1744925442756,-712.2,0.00071989,120]
[358314582,1744925442765,-712.2,0.00071989,120]
[358314583,1744925442774,-500.0,0.00071989,120]
[358314584,1744925442783,-500.0,0.00071989,120]
[358314585,1744925442792,-500.0,0.00071989,120]
[358314586,1744925442802,-587.79,0.00071989,120]
[358314587,1744925442811,-587.79,0.00071989,120]
[358314588,1744925442821,-2834.74,0.00071989,120]
[358314589,1744925442831,-2834.74,0.00071989,120]
[358314590,1744925442840,-500.0,0.00071989,120]
[358314591,1744925442849,-500.0,0.00071989,120]
[358314592,1744925442859,-500.0,0.00071989,120]
[358314593,1744925442869,-536.84024622,0.00071989,120]
[358314594,1744925442879,-500.0,0.00071989,120]
[358314595,1744925442889,-500.0,0.00071989,120]
[358314596,1744925442898,-365.59617909,0.00071992,120]
[358314597,1744925442907,-500.0,0.00071992,120]
[358314598,1744925442917,-500.0,0.00071992,120]
[358314599,1744925442926,-500.0,0.00071992,120]
[358314600,1744925442936,-592.19104827,0.00071992,120]
[358314601,1744925442946,-677.58,0.00071998,120]
[358314602,1744925442955,-1963.46,0.00071999,120]
[358314603,1744925442964,-50000.0,0.00072,72]
[358314604,1744925442974,-471.47510692,0.00072498,120]
[358314605,1744925442983,-507.41322393,0.00072498,120]
[358314606,1744925442993,-500.0,0.00072498,120]
[358314607,1744925443002,-500.0,0.00072498,120]
[358314608,1744925443011,-518.9303937,0.00072498,120]
[358314609,1744925443021,-500.0,0.00072498,2]
[358314610,1744925443031,-315.37670206,0.00072498,120]
[358314611,1744925443040,-500.0,0.00072498,120]
[358314612,1744925443050,-500.0,0.00072498,120]
[358314613,1744925443059,-500.0,0.00072498,120]
[358314614,1744925443069,-500.0,0.00072498,120]
[358314615,1744925443078,-500.0,0.00072498,120]
[358314616,1744925443088,-500.0,0.00072498,120]
[358314617,1744925443097,-500.0,0.00072498,120]
[358314618,1744925443107,-500.0,0.00072498,120]
[358314619,1744925443116,-500.0,0.00072498,120]
[358314620,1744925443125,-500.0,0.00072498,120]
[358314621,1744925443136,-500.0,0.00072498,120]
[358314622,1744925443144,-559.74,0.00072498,120]
[358314623,1744925443154,-500.0,0.00072498,120]
[358314624,1744925443163,-500.0,0.00072498,120]
[358314625,1744925443172,-500.0,0.00072498,120]
[358314626,1744925443181,-500.0,0.00072498,120]
[358314627,1744925443190,-500.0,0.00072498,120]
[358314628,1744925443199,-500.0,0.00072498,120]
[358314629,1744925443209,-500.0,0.00072498,120]
[358314630,1744925443218,-500.0,0.00072498,120]
[358314631,1744925443227,-559.80703594,0.00072498,120]
[358314632,1744925443237,-500.0,0.00072498,120]
[358314633,1744925443246,-192.49588028,0.00072498,120]
[358314634,1744925443256,-500.0,0.00072498,120]
[358314635,1744925443266,-500.0,0.00072498,120]
[358314636,1744925443275,-509.16411281,0.00072498,120]
[358314637,1744925443285,-499.92729875,0.00072498,120]
[358314638,1744925443294,-500.0,0.00072498,120]
[358314639,1744925443304,-605.77678465,0.00072498,120]
[358314640,1744925443313,-644.24682883,0.00072498,120]
[358314641,1744925443322,-1963.46,0.00072499,120]
[358314642,1744925443331,-1963.46,0.00072499,120]